fUSD/lending_fUSD_20251231
["ID","MTS","AMOUNT","RATE_DAILY","PERIOD"]
[400201072,1767193447895,372.00822633,0.00011839,2]
[400201074,1767193454706,503.42768977,0.00011839,2]
[400201075,1767193456010,306.98627364,0.00011839,2]
[400201076,1767193468879,1437.361363,0.00011781,2]
[400201080,1767193481226,447.212698,0.00011781,2]
[400201081,1767193493342,646.70704334,0.0001174,2]
[400201082,1767193501221,1200.0,0.00011839,2]
[400201083,1767193501329,300.0,0.00011839,2]
[400201087,1767193532225,3025.09803623,0.0001174,2]
[400201093,1767193561353,300.0,0.00011839,2]
[400201094,1767193561475,151.0,0.0001184,2]
[400201095,1767193561569,417.80257126,0.0001184,2]
[400201096,1767193562367,313.35192845,0.0001184,2]
[400201097,1767193562794,150.0,0.00011839,2]
[400201100,1767193588487,310.16371811,0.0001174,2]
[400201101,1767193588565,542.42748189,0.0001174,2]
[400201103,1767193598138,150.0,0.00011839,2]
[400201105,1767193641088,7872.55122612,0.0001174,2]
[400201106,1767193643819,1435.03129199,0.0001184,2]
[400201107,1767193643889,4254.96870801,0.0001184,2]
[400201108,1767193646744,-310.68956387,0.0001184,2]
[400201109,1767193648862,-165.336,0.0001184,2]
[400201110,1767193650752,159.85238146,0.00011839,2]
[400201111,1767193650856,194.36756749,0.00011839,2]
[400201113,1767193676833,261.0,0.00011781,2]
[400201117,1767193681427,300.0,0.00011839,2]
[400201118,1767193685234,-281.54429759,0.0001184,2]
[400201119,1767193687775,-180.42847508,0.0001184,2]
[400201120,1767193691638,1200.0,0.00011839,2]
[400201121,1767193715216,-328.39570891,0.00011839,2]
[400201122,1767193715250,-78.72841677,0.0001184,2]
[400201123,1767193718838,-495.68879679,0.0001184,2]
[400201124,1767193720363,-175.40086287,0.0001184,2]
[400201125,1767193722578,-160.75987812,0.0001184,2]
[400201135,1767193755451,-300.0,0.00011739,2]
[400201136,1767193755530,-150.0,0.00011739,2]
[400201137,1767193755879,-238.09913638,0.0001174,2]
[400201140,1767193760990,-634.29628438,0.0001174,2]
[400201141,1767193765144,-192.99831103,0.0001174,2]
[400201143,1767193767594,-311.00168897,0.0001174,2]
[400201144,1767193770337,-227.86217103,0.0001174,2]
[400201150,1767193790282,-300.0,0.0001174,2]
[400201152,1767193793887,-177.00021117,0.0001174,2]
[400201153,1767193796055,-184.63920597,0.0001174,2]
[400201155,1767193798617,-183.78489306,0.0001174,2]
[400201157,1767193801229,-313.4005179,0.00011739,2]
[400201158,1767193801727,-886.5994821,0.00011739,2]
[400201159,1767193801799,-300.0,0.00011739,2]
[400201160,1767193801869,-139.56862862,0.0001174,2]
[400201161,1767193801938,-703.4614476,0.0001174,2]
[400201162,1767193803546,246.0,0.0001174,2]
[400201175,1767193831586,-18235.16393985,0.0001174,2]
[400201176,1767193831599,-1493.83764128,0.0001174,2]
[400201177,1767193831611,-574.96778752,0.0001174,2]
[400201193,1767193837736,-935.8908709,0.0001174,2]
[400201373,1767193839718,-3803.03493119,0.0001174,2]
[400201399,1767193840117,-1.7e-07,0.0001174,2]
[400201401,1767193840133,-369.0,0.0001174,2]
[400201404,1767193840145,-817.28181432,0.0001174,2]
[400201765,1767193843657,-459.49990967,0.0001174,2]
[400201779,1767193843826,-44185.0,0.0001174,2]
[400201943,1767193845784,-351.5521247,0.0001174,2]
[400202382,1767193861410,300.0,0.00011739,2]
[400202386,1767193893628,155.855,0.00011505,2]
[400202388,1767193893724,2421.052,0.00011505,2]
[400202396,1767193922509,150.0,0.00011739,2]
[400202398,1767193925736,-243.80804689,0.0001174,2]
[400202401,1767193927713,-308.85630062,0.0001174,2]
[400202403,1767193929147,-159.44506256,0.0001174,2]
[400202404,1767193930666,-363.33764111,0.0001174,2]
[400202405,1767193932106,-898.35079129,0.0001174,2]
[400202406,1767193934554,-311.51671462,0.0001174,2]
[400202411,1767193936619,-279.48633976,0.0001174,2]
[400202412,1767193939284,-192.50448682,0.0001174,2]
[400202413,1767193939512,530.23592942,0.00011665,2]
[400202414,1767193941028,999.0,0.00012605,3]
[400202416,1767193943845,-553.85144253,0.0001174,2]
[400202417,1767193946460,-207.42834574,0.0001174,2]
[400202418,1767193950357,-300.0,0.0001174,2]
[400202422,1767193955162,-206.275308,0.0001174,2]
[400202423,1767193957711,-646.14855747,0.0001174,2]
[400202427,1767193961417,500.0,0.00011739,2]
[400202428,1767193961510,527.51311609,0.00011739,2]
[400202429,1767193961608,198.24823314,0.00011739,2]
[400202430,1767193961703,308.83521683,0.00011739,2]
[400202431,1767193962213,280.56505161,0.00011739,2]
[400202432,1767193962598,322.44633627,0.00011739,2]
[400202433,1767193962664,177.55366373,0.00011739,2]
[400202434,1767193962755,500.0,0.00011739,2]
[400202435,1767193962859,500.0,0.00011739,2]
[400202439,1767193969872,500.0,0.00011739,2]
[400202440,1767193970001,500.0,0.00011739,2]
[400202441,1767193970115,500.0,0.00011739,2]
[400202442,1767193970216,500.0,0.00011739,2]
[400202443,1767193970353,500.0,0.00011739,2]
[400202444,1767193970483,500.0,0.00011739,2]
[400202445,1767193970595,500.0,0.00011739,2]
[400202446,1767193970701,500.0,0.00011739,2]
[400202447,1767193970795,500.0,0.00011739,2]
[400202448,1767193970894,500.0,0.00011739,2]
[400202449,1767193970992,500.0,0.00011739,2]
[400202450,1767193971089,500.0,0.00011739,2]
[400202451,1767193971192,500.0,0.00011739,2]
[400202452,1767193971317,500.0,0.00011739,2]
[400202453,1767193971433,500.0,0.00011739,2]
[400202454,1767193971538,423.3647769,0.00011739,2]
[400202461,1767194049385,-2267.41047542,0.00011643,2]
[400202464,1767194055194,-4534.82095084,0.00011643,2]
[400202465,1767194064356,-930.36809832,0.00011643,2]
[400202466,1767194064445,-3615.1792346,0.00011643,2]
[400202467,1767194064532,-250.0,0.00011691,2]
[400202468,1767194064612,-158.91533416,0.00011726,2]
[400202469,1767194064934,-91.08466584,0.00011726,2]
[400202470,1767194065011,-300.0,0.00011739,2]
[400202471,1767194065422,930.64791213,0.00011726,2]
[400202472,1767194069102,157.95,9.831e-05,2]
[400202473,1767194076307,409.3742697,0.00011643,2]
[400202474,1767194080212,353.49061962,0.00011643,2]
[400202475,1767194082093,158.18778015,0.00011643,2]
[400202477,1767194101597,300.0,0.00011739,2]
[400202478,1767194101690,300.0,0.00011739,2]
[400202479,1767194101784,1200.0,0.00011739,2]
[400202480,1767194102698,150.0,0.00011739,2]
[400202481,1767194107043,369.25918126,0.00011739,2]
[400202482,1767194122470,500.0,0.00011739,2]
[400202483,1767194122581,500.0,0.00011739,2]
[400202484,1767194122722,500.0,0.00011739,2]
[400202485,1767194122838,500.0,0.00011739,2]
[400202486,1767194122939,500.0,0.00011739,2]
[400202487,1767194123048,500.0,0.00011739,2]
[400202488,1767194123161,500.0,0.00011739,2]
[400202489,1767194123266,484.63796784,0.00011739,2]
[400202490,1767194123383,500.0,0.00011739,2]
[400202491,1767194123497,500.0,0.00011739,2]
[400202492,1767194123612,500.0,0.00011739,2]
[400202493,1767194123723,500.0,0.00011739,2]
[400202495,1767194148811,500.0,0.00011739,2]
[400202496,1767194148905,313.29220316,0.00011739,2]
[400202497,1767194149004,500.0,0.00011739,2]
[400202498,1767194149095,382.82064774,0.00011739,2]
[400202499,1767194149169,117.17935226,0.00011739,2]
[400202500,1767194161327,300.0,0.00011739,2]
[400202502,1767194220607,235.66041308,0.00011642,2]
[400202503,1767194221692,300.0,0.00011739,2]
[400202505,1767194283007,150.0,0.00011739,2]
[400202506,1767194360851,157.10694206,0.00011641,2]
[400202508,1767194401437,1200.0,0.00011739,2]
[400202509,1767194401560,300.0,0.00011739,2]
[400202510,1767194403354,246.0,0.0001174,2]
[400202511,1767194406177,373.23357973,0.00011717,2]
[400202512,1767194412431,182.00024131,0.00011733,2]
[400202513,1767194413584,6438.82947156,0.00011641,2]
[400202514,1767194413667,1342.67270445,0.00011641,2]
[400202518,1767194461371,300.0,0.00011739,2]
[400202519,1767194463097,150.0,0.00011739,2]
[400202524,1767194480542,270.85414181,0.00013501,5]
[400202525,1767194492873,240.0,0.00030136,120]
[400202526,1767194493624,2131.712,0.00011505,2]
[400202527,1767194496642,-90250.0,0.0001174,2]
[400202529,1767194501179,157.10694204,0.00011641,2]
[400202530,1767194525291,500.0,0.0001174,2]
[400202531,1767194527599,200.0,0.0001174,2]
[400202532,1767194530182,-3956.65206688,0.0001174,2]
[400202533,1767194530369,-10000.01,0.0001174,2]
[400202534,1767194530629,-10000.01,0.0001174,2]
[400202535,1767194530894,-10000.01,0.0001174,2]
[400202536,1767194531101,-10000.01,0.0001174,2]
[400202537,1767194531405,151.0,0.0001174,2]
[400202538,1767194531503,-9849.01,0.0001174,2]
[400202539,1767194532024,179.50398035,0.0001174,2]
[400202540,1767194535031,-9820.50601965,0.0001174,2]
[400202541,1767194535397,-10000.01,0.0001174,2]
[400202542,1767194535655,-10000.01,0.0001174,2]
[400202543,1767194535927,-10000.01,0.0001174,2]
[400202545,1767194539357,200.0,0.0001174,2]
[400202546,1767194541924,200.0,0.0001174,2]
[400202547,1767194546599,167.21159727,0.00011701,2]
[400202548,1767194552801,3253.66131114,0.00011641,2]
[400202549,1767194560740,1096.3,0.00011731,2]
[400202550,1767194573243,153.23027184,0.00011739,2]
[400202551,1767194573358,500.0,0.00011739,2]
[400202552,1767194573614,500.0,0.00011739,2]
[400202553,1767194573942,500.0,0.00011739,2]
[400202554,1767194574288,500.0,0.00011739,2]
[400202555,1767194574587,500.0,0.00011739,2]
[400202556,1767194574717,500.0,0.00011739,2]
[400202557,1767194574828,500.0,0.00011739,2]
[400202558,1767194574949,500.0,0.00011739,2]
[400202559,1767194575061,500.0,0.00011739,2]
[400202560,1767194575181,429.60681975,0.00011739,2]
[400202561,1767194575269,70.39318025,0.00011739,2]
[400202562,1767194575386,500.0,0.00011739,2]
[400202563,1767194575504,500.0,0.00011739,2]
[400202564,1767194575636,500.0,0.00011739,2]
[400202565,1767194575754,500.0,0.00011739,2]
[400202566,1767194575866,500.0,0.00011739,2]
[400202567,1767194575986,500.0,0.00011739,2]
[400202568,1767194576099,500.0,0.00011739,2]
[400202569,1767194576220,500.0,0.00011739,2]
[400202570,1767194576332,177.54769071,0.00011739,2]
[400202571,1767194581660,300.0,0.00011739,2]
[400202572,1767194583925,1896.9094563,0.00011739,2]
[400202573,1767194584040,231.43896469,0.00011739,2]
[400202574,1767194584153,229.42780923,0.00011739,2]
[400202587,1767194631773,157.10694204,0.00011701,2]
[400202588,1767194641793,300.0,0.00011739,2]
[400202589,1767194642653,150.0,0.00011739,2]
[400202590,1767194652329,150.0,0.00011727,2]
[400202592,1767194660631,389.29307991,0.00011739,2]
[400202598,1767194669250,500.98864499,0.00011739,2]
[400202606,1767194701351,1200.0,0.00011739,2]
[400202607,1767194701457,246.90423188,0.00011739,2]
[400202608,1767194701532,53.09576812,0.00011739,2]
[400202609,1767194701645,300.0,0.00011739,2]
[400202617,1767194761866,9646.91423188,0.0001164,2]
[400202618,1767194761957,10000.01,0.0001164,2]
[400202619,1767194762051,10000.01,0.0001164,2]
[400202620,1767194762148,10000.01,0.0001164,2]
[400202621,1767194762245,10000.01,0.0001164,2]
[400202622,1767194762343,10000.01,0.0001164,2]
[400202623,1767194762439,10000.01,0.0001164,2]
[400202624,1767194762534,10000.01,0.0001164,2]
[400202625,1767194762628,10000.01,0.0001164,2]
[400202626,1767194763075,-183.45862217,0.0001164,2]
[400202627,1767194768302,-421.73063177,0.0001164,2]
[400202628,1767194771016,-359.91913793,0.0001164,2]
[400202629,1767194774235,-200.13488385,0.0001164,2]
[400202630,1767194776594,-174.72569709,0.0001164,2]
[400202631,1767194778751,-250.0,0.0001164,2]
[400202633,1767194780735,-299.3087587,0.0001164,2]
[400202638,1767194783829,-710.566,0.0001164,2]
[400202641,1767194785638,-246.82755494,0.0001164,2]
[400202646,1767194787564,-166.93819676,0.0001164,2]
[400202662,1767194790902,-333.9659742,0.0001164,2]
[400202665,1767194792468,-194.76532127,0.0001164,2]
[400202666,1767194793871,-344.18978046,0.0001164,2]
[400202667,1767194794440,500.0,0.00011639,2]
[400202668,1767194794554,216.18465179,0.00011639,2]
[400202669,1767194794734,258.48142688,0.00011639,2]
[400202670,1767194794965,500.0,0.00011639,2]
[400202671,1767194795152,269.30454221,0.00011639,2]
[400202672,1767194796174,500.0,0.00011639,2]
[400202673,1767194796330,516.21856585,0.00011639,2]
[400202674,1767194796490,500.0,0.00011639,2]
[400202675,1767194798915,-199.19494015,0.0001164,2]
[400202676,1767194799879,7162.8073137,0.0001159,2]
[400202678,1767194811659,151.32925625,0.00011639,2]
[400202679,1767194812433,-166.66,0.0001164,2]
[400202680,1767194823354,150.0,0.00011639,2]
[400202702,1767194930794,-168.3644251,0.0001164,2]
[400202749,1767194941648,300.0,0.00011639,2]
[400202824,1767195001407,300.0,0.00011639,2]
[400202825,1767195001532,1200.0,0.00011639,2]
[400202826,1767195002881,150.0,0.00011639,2]
[400202827,1767195003348,245.0,0.0001164,2]
[400202838,1767195016981,317.45,0.00030136,120]
[400202847,1767195031804,-426.83436047,0.0001164,2]
[400202855,1767195031854,-782.76857672,0.0001164,2]
[400202856,1767195031866,-22229.81775525,0.0001164,2]
[400202857,1767195031877,-1349.61288932,0.0001164,2]
[400202858,1767195031900,-4060.37630892,0.0001164,2]
[400202859,1767195031939,-458.19347656,0.0001164,2]
[400202860,1767195031983,-4201.65523545,0.0001164,2]
[400202861,1767195031995,-1422.63899574,0.0001164,2]
[400202862,1767195032007,-13212.00000001,0.0001164,2]
[400203396,1767195038028,-4574.7294634,0.0001164,2]
[400203398,1767195038040,-14212.44024446,0.0001164,2]
[400203401,1767195038054,-938.01701438,0.0001164,2]
[400203403,1767195038066,-2429.66215427,0.0001164,2]
[400203405,1767195038078,-19845.24128045,0.0001164,2]
[400203407,1767195038089,-5778.20325848,0.0001164,2]
[400203410,1767195038103,-13861.72199951,0.0001164,2]
[400203412,1767195038115,-481.04871057,0.0001164,2]
[400203421,1767195038195,-8.63986461,0.0001164,2]
[400203594,1767195040011,-134400.09678827,0.0001164,2]
[400203606,1767195040117,-356.68236483,0.0001164,2]
[400203608,1767195040129,-644.38,0.0001164,2]
[400203610,1767195040141,-396.71618048,0.0001164,2]
[400203633,1767195040357,-763.45759774,0.0001164,2]
[400203643,1767195040443,-7883.14683936,0.0001164,2]
[400203645,1767195040456,-523.34287504,0.0001164,2]
[400203654,1767195040527,-427.39638274,0.0001164,2]
[400203686,1767195040816,-1.7e-07,0.0001164,2]
[400204006,1767195043923,-371.02370883,0.0001164,2]
[400204015,1767195043975,-345.69,0.0001164,2]
[400204121,1767195045109,-5559.86373034,0.0001164,2]
[400204123,1767195045121,-11486.79525493,0.0001164,2]
[400204125,1767195045133,-8344.33608363,0.0001164,2]
[400204222,1767195046047,-4063.492256,0.0001164,2]
[400204225,1767195046066,-822.31085786,0.0001164,2]
[400204227,1767195046079,-1766.10020274,0.0001164,2]
[400205751,1767195063036,340.87343005,0.00011565,2]
[400205761,1767195063122,2587.42175003,0.00011565,2]
[400206410,1767195079204,500.0,0.00011639,2]
[400206411,1767195079309,500.0,0.00011639,2]
[400206412,1767195079419,500.0,0.00011639,2]
[400206413,1767195079537,500.0,0.00011639,2]
[400206414,1767195079656,500.0,0.00011639,2]
[400206415,1767195079772,500.0,0.00011639,2]
[400206416,1767195079896,500.0,0.00011639,2]
[400206417,1767195080010,184.74445453,0.00011639,2]
[400206418,1767195080133,500.0,0.00011639,2]
[400206419,1767195080236,500.0,0.00011639,2]
[400206420,1767195080352,500.0,0.00011639,2]
[400206421,1767195080471,500.0,0.00011639,2]
[400206422,1767195093912,1705.37,0.00011407,2]
[400206427,1767195125020,22.47379544,0.0001164,2]
[400206428,1767195125107,177.52620456,0.0001164,2]
[400206429,1767195132856,200.0,0.0001164,2]
[400206432,1767195140391,-500.0,0.0001164,2]
[400206433,1767195141537,-5370.32424332,0.0001164,2]
[400206434,1767195141732,-10000.01,0.0001164,2]
[400206435,1767195141973,-10000.01,0.0001164,2]
[400206436,1767195142250,-10000.01,0.0001164,2]
[400206437,1767195142622,-10000.01,0.0001164,2]
[400206439,1767195143399,-10000.01,0.0001164,2]
[400206440,1767195143670,-10000.01,0.0001164,2]
[400206441,1767195143960,-10000.01,0.0001164,2]
[400206442,1767195144212,-10000.01,0.0001164,2]
[400206443,1767195144457,-10000.01,0.0001164,2]
[400206450,1767195164394,5501.277567,0.00011582,2]
[400206455,1767195175080,244.932,0.0001154,2]
[400206457,1767195181612,300.0,0.00011639,2]
[400206458,1767195182855,150.0,0.00011639,2]
[400206462,1767195186080,3803.800433,0.0001154,2]
[400206463,1767195186152,3448.18453501,0.0001154,2]
[400206465,1767195191907,650.0,0.00011639,2]
[400206468,1767195195731,301.0,0.00011637,2]
[400206472,1767195215065,278.5469,0.0001154,2]
[400206478,1767195227194,5322.27856499,0.0001154,2]
[400206479,1767195227271,10000.01,0.0001154,2]
[400206480,1767195227370,7756.85673501,0.0001154,2]
[400206481,1767195227931,-1034.73532545,0.0001164,2]
[400206485,1767195239417,500.0,0.00011639,2]
[400206486,1767195239506,500.0,0.00011639,2]
[400206487,1767195239613,500.0,0.00011639,2]
[400206488,1767195239715,500.0,0.00011639,2]
[400206489,1767195239824,243.15326499,0.00011639,2]
[400206490,1767195239906,256.84673501,0.00011639,2]
[400206491,1767195239997,500.0,0.00011639,2]
[400206492,1767195240092,500.0,0.00011639,2]
[400206493,1767195240189,318.85070254,0.00011639,2]
[400206494,1767195240284,579.17298436,0.00011639,2]
[400206495,1767195240383,163.67438457,0.00011639,2]
[400206496,1767195240475,387.83806581,0.00011639,2]
[400206502,1767195282335,500.0,0.00011639,2]
[400206503,1767195282437,500.0,0.00011639,2]
[400206504,1767195282545,500.0,0.00011639,2]
[400206505,1767195282649,500.0,0.00011639,2]
[400206506,1767195282740,500.37214344,0.00011639,2]
[400206507,1767195282851,577.12520897,0.00011639,2]
[400206508,1767195282949,343.87441975,0.00011639,2]
[400206509,1767195301231,300.0,0.00011639,2]
[400206510,1767195301318,1200.0,0.00011639,2]
[400206511,1767195301399,300.0,0.00011639,2]
[400206512,1767195301478,300.0,0.00011639,2]
[400206514,1767195319620,1650.72168419,0.0001154,2]
[400206516,1767195362835,121.53367136,0.00011639,2]
[400206517,1767195362898,28.46632864,0.00011639,2]
[400206518,1767195364331,497.30694611,0.00011639,2]
[400206519,1767195365281,254.77885581,0.00011639,2]
[400206524,1767195369666,150.0,0.00011785,120]
[400206531,1767195374879,500.0,0.00011639,2]
[400206533,1767195375235,500.0,0.00011639,2]
[400206534,1767195375321,184.61181705,0.00011639,2]
[400206535,1767195380565,500.0,0.00011639,2]
[400206536,1767195380653,500.0,0.00011639,2]
[400206540,1767195483345,2956.79288232,0.0001154,2]
[400206541,1767195490274,-142327.089892,0.0001164,2]
[400206542,1767195524777,3004.49948487,3.137e-05,120]
[400206543,1767195526176,4078.05317007,0.0001154,2]
[400206544,1767195526247,10000.01,0.0001154,2]
[400206545,1767195526311,10000.01,0.0001154,2]
[400206546,1767195526383,1265.39652993,0.0001154,2]
[400206547,1767195532346,2500.0,0.0001154,2]
[400206548,1767195540605,207.26904625,0.00011639,2]
[400206549,1767195543202,150.0,0.00011639,2]
[400206550,1767195547862,594.422334,7.945e-05,2]
[400206551,1767195554870,151.0,0.00011637,2]
[400206552,1767195555287,151.0,0.00011637,2]
[400206553,1767195559018,500.0,0.00011639,2]
[400206554,1767195559120,500.0,0.00011639,2]
[400206555,1767195559219,500.0,0.00011639,2]
[400206556,1767195559313,500.0,0.00011639,2]
[400206557,1767195559415,500.0,0.00011639,2]
[400206558,1767195559511,500.0,0.00011639,2]
[400206559,1767195559623,500.0,0.00011639,2]
[400206560,1767195559739,500.0,0.00011639,2]
[400206561,1767195559855,500.0,0.00011639,2]
[400206562,1767195559971,480.92208982,0.00011639,2]
[400206563,1767195560064,19.07791018,0.00011639,2]
[400206564,1767195560179,500.0,0.00011639,2]
[400206565,1767195560281,500.0,0.00011639,2]
[400206566,1767195560385,500.0,0.00011639,2]
[400206567,1767195560491,500.0,0.00011639,2]
[400206568,1767195560585,500.0,0.00011639,2]
[400206569,1767195560705,500.0,0.00011639,2]
[400206570,1767195560803,500.0,0.00011639,2]
[400206571,1767195560899,500.0,0.00011639,2]
[400206572,1767195560989,500.0,0.00011639,2]
[400206573,1767195561079,500.0,0.00011639,2]
[400206574,1767195561177,500.0,0.00011639,2]
[400206575,1767195561297,500.0,0.00011639,2]
[400206576,1767195561410,253.86870047,0.00011639,2]
[400206577,1767195561995,500.0,0.00011639,2]
[400206578,1767195562109,500.0,0.00011639,2]
[400206579,1767195562206,500.0,0.00011639,2]
[400206580,1767195562296,500.0,0.00011639,2]
[400206581,1767195562405,500.0,0.00011639,2]
[400206582,1767195566467,1227.06338935,0.0001163,2]
[400206583,1767195566533,8210.95878738,0.0001163,2]
[400206584,1767195572326,1789.05121262,0.0001154,2]
[400206585,1767195572401,5059.77205825,0.0001154,2]
[400206586,1767195574965,500.0,0.00011639,2]
[400206587,1767195575073,500.0,0.00011639,2]
[400206588,1767195575173,500.0,0.00011639,2]
[400206589,1767195575271,500.0,0.00011639,2]
[400206590,1767195575370,500.0,0.00011639,2]
[400206591,1767195575461,500.0,0.00011639,2]
[400206592,1767195575553,500.0,0.00011639,2]
[400206593,1767195575661,500.0,0.00011639,2]
[400206594,1767195575762,500.0,0.00011639,2]
[400206595,1767195575864,440.23794175,0.0001154,2]
[400206596,1767195575940,3006.28805825,0.0001154,2]
[400206597,1767195576043,500.0,0.00011639,2]
[400206598,1767195576130,500.0,0.00011639,2]
[400206599,1767195576217,500.0,0.00011639,2]
[400206600,1767195576315,500.0,0.00011639,2]
[400206601,1767195576417,500.0,0.00011639,2]
[400206602,1767195576523,500.0,0.00011639,2]
[400206603,1767195576638,500.0,0.00011639,2]
[400206604,1767195576738,500.0,0.00011639,2]
[400206605,1767195576831,500.0,0.00011639,2]
[400206606,1767195576921,500.0,0.00011639,2]
[400206607,1767195577012,500.0,0.00011639,2]
[400206608,1767195577099,500.0,0.00011639,2]
[400206609,1767195577197,500.0,0.00011639,2]
[400206610,1767195577292,493.72194175,0.00011639,2]
[400206611,1767195577374,6.27805825,0.00011639,2]
[400206612,1767195577472,500.0,0.00011639,2]
[400206613,1767195577571,500.0,0.00011639,2]
[400206614,1767195577683,500.0,0.00011639,2]
[400206615,1767195577768,500.0,0.00011639,2]
[400206616,1767195577849,500.0,0.00011639,2]
[400206617,1767195577953,500.0,0.00011639,2]
[400206618,1767195578042,500.0,0.00011639,2]
[400206619,1767195580330,570.46712288,0.00011628,2]
[400206620,1767195583146,189.51548953,0.00011639,2]
[400206656,1767195591474,500.0,0.00011639,2]
[400206657,1767195591565,500.0,0.00011639,2]
[400206658,1767195591663,500.0,0.00011639,2]
[400206659,1767195591754,500.0,0.00011639,2]
[400206660,1767195591854,500.0,0.00011639,2]
[400206661,1767195591949,650.0,0.00011639,2]
[400206662,1767195601224,300.0,0.00011639,2]
[400206663,1767195601303,300.0,0.00011639,2]
[400206664,1767195601388,1200.0,0.00011639,2]
[400206666,1767195601541,300.0,0.00011639,2]
[400206667,1767195603130,491.309544,0.00011582,2]
[400206668,1767195603286,245.0,0.0001164,2]
[400206669,1767195611685,151.0,0.00011637,2]
[400206670,1767195612165,152.0,0.00011637,2]
[400206746,1767195661388,300.0,0.00011639,2]
[400206747,1767195663434,1000.0,0.0001154,2]
[400206748,1767195666127,377.31369087,0.00011639,2]
[400206772,1767195688241,1273.40415272,0.0001154,2]
[400206773,1767195688317,1226.59584728,0.0001154,2]
[400206775,1767195708433,1075.5627485,0.0001154,2]
[400206776,1767195711700,475.76251505,0.00011639,2]
[400206777,1767195713115,371.18345262,0.00011639,2]
[400206779,1767195722816,150.0,0.00011639,2]
[400206780,1767195722908,300.0,0.00011639,2]
[400206818,1767195744423,500.0,0.00011639,2]
[400206820,1767195744522,500.0,0.00011639,2]
[400206821,1767195744626,162.91598116,0.00011639,2]
[400206890,1767195777647,5237.98945539,0.0001154,2]
[400206891,1767195777757,10000.01,0.0001154,2]
[400206892,1767195777848,10000.01,0.0001154,2]
[400206893,1767195777935,10000.01,0.0001154,2]
[400206894,1767195778023,10000.01,0.0001154,2]
[400206895,1767195778108,10000.01,0.0001154,2]
[400206896,1767195778193,10000.01,0.0001154,2]
[400206897,1767195778277,10000.01,0.0001154,2]
[400206898,1767195778367,10000.01,0.0001154,2]
[400206899,1767195778455,10000.01,0.0001154,2]
[400206900,1767195778919,-211.48631132,0.0001154,2]
[400206901,1767195781356,300.0,0.00011539,2]
[400206902,1767195791066,899.24425346,0.0001154,2]
[400206903,1767195791209,978.64153248,0.0001154,2]
[400206904,1767195791349,1169.67429757,0.0001154,2]
[400206906,1767195791441,345.52697082,0.0001154,2]
[400206908,1767195791639,1200.0,0.00011539,2]
[400206909,1767195797885,175.53182734,0.0001149,2]
[400206910,1767195802618,201.62767683,0.0001149,2]
[400206911,1767195841380,300.0,0.00011539,2]
[400206912,1767195861933,9322.85049583,0.00011539,2]
[400206913,1767195861998,10000.01,0.00011539,2]
[400206914,1767195862066,10000.01,0.00011539,2]
[400206915,1767195862136,10000.01,0.00011539,2]
[400206916,1767195862198,10000.01,0.00011539,2]